bitfinex-derivatives/quotes_SOLF0:USTF0_20251002
["timestamp","ask_amount","ask_price","bid_price","bid_amount"]
[1759442243678,7.41,232.78,232.71,7.16]
[1759442243883,2.94384531,232.77,232.71,7.16]
[1759442244182,2.94384531,232.76,232.7,3.8647]
[1759442244380,7.44,232.78,232.71,7.65]
[1759442244582,2.94375041,232.77,232.71,7.65]
[1759442244781,7.44,232.78,232.71,7.65]
[1759442244977,2.94375041,232.77,232.71,7.65]
[1759442245182,7.44,232.76,232.7,11.5147]
[1759442246979,3.8635,232.79,232.7,11.5147]
[1759442247184,7.44,232.77,232.66,11.5155]
[1759442247386,2.94323024,232.76,232.66,11.5155]
[1759442247581,7.44,232.74,232.66,11.5155]
[1759442247782,15.59625132,232.8,232.66,11.5155]
[1759442247979,7.44,232.78,232.66,11.5155]
[1759442248180,7.44,232.76,232.66,11.5155]
[1759442248375,7.44,232.74,232.66,11.5155]
[1759442248883,7.44,232.74,232.68,7.65]
[1759442252686,7.44,232.74,232.69,7.05]
[1759442252884,7.44,232.74,232.68,3.8651]
[1759442253184,11.4438,232.77,232.69,7.05]
[1759442253384,2.94533897,232.76,232.69,7.05]
[1759442253591,11.4438,232.77,232.69,7.05]
[1759442253780,2.94529089,232.76,232.69,7.05]
[1759442253985,11.4438,232.77,232.69,7.05]
[1759442254288,7.58,232.75,232.69,10.9149]
[1759442254991,7.58,232.75,232.7,3.8648]
[1759442256190,7.58,232.75,232.71,7.05]
[1759442257081,7.58,232.75,232.7,3.8648]
[1759442257286,7.58,232.75,232.71,7.05]
[1759442257482,7.58,232.75,232.7,3.8648]
[1759442257688,7.58,232.75,232.71,7.05]
[1759442257885,7.58,232.75,232.7,3.8648]
[1759442258091,3.8634,232.79,232.7,10.9148]
[1759442258281,7.58,232.77,232.7,10.9148]
[1759442258485,2.94473776,232.76,232.7,10.9148]
[1759442258687,7.58,232.77,232.7,10.9148]
[1759442258886,10.52480884,232.76,232.72,7.05]
[1759442259091,7.58,232.76,232.71,3.8646]
[1759442259290,7.58,232.76,232.72,7.05]
[1759442259491,7.58,232.78,232.71,10.9146]
[1759442259790,2.94461821,232.77,232.71,10.9146]
[1759442260088,10.52461821,232.76,232.72,7.05]
[1759442260292,7.58,232.76,232.71,3.8646]
[1759442260488,7.58,232.76,232.72,7.05]
[1759442260692,7.58,232.78,232.71,10.9146]
[1759442260883,7.58,232.76,232.69,3.865]
[1759442263392,7.58,232.76,232.7,3.8648]
[1759442263594,7.58,232.77,232.71,7.05]
[1759442263794,2.94483154,232.76,232.7,3.8648]
[1759442264094,7.58,232.77,232.71,7.05]
[1759442264295,2.94495117,232.76,232.71,7.05]
[1759442264591,16.71126081,232.8,232.71,7.05]
[1759442264592,7.58,232.79,232.71,7.05]
[1759442264787,16.71126081,232.8,232.71,7.05]
[1759442264788,10.52529041,232.78,232.71,7.05]
[1759442264989,2.94529041,232.77,232.71,7.05]
[1759442265189,7.58,232.78,232.71,7.05]
[1759442265390,2.94528711,232.77,232.71,7.05]
[1759442265587,7.58,232.78,232.72,3.8644]
[1759442265789,10.5252273,232.77,232.73,7.05]
[1759442265992,7.58,232.77,232.73,7.05]
[1759442266193,7.58,232.77,232.72,3.8644]
[1759442266388,7.58,232.79,232.73,7.05]
[1759442266596,10.52522245,232.78,232.72,10.9144]
[1759442266893,10.52522245,232.77,232.72,3.8644]
[1759442267090,7.58,232.77,232.73,7.05]
[1759442267290,7.58,232.79,232.73,7.05]
[1759442267490,10.52524889,232.78,232.72,10.9144]
[1759442267693,10.52524889,232.77,232.73,7.05]
[1759442267885,7.58,232.77,232.73,7.05]
[1759442268192,7.58,232.79,232.73,7.05]
[1759442268593,2.94517767,232.78,232.72,3.8644]
[1759442268793,7.58,232.79,232.72,10.9144]
[1759442269195,3.8633,232.8,232.72,10.9144]
[1759442269394,10.5250198,232.79,232.72,10.9144]
[1759442269594,7.58,232.78,232.72,10.9144]
[1759442271097,7.58,232.81,232.74,7.05]
[1759442272393,2.94448639,232.8,232.74,7.05]
[1759442272594,7.58,232.81,232.74,7.05]
[1759442272794,2.94449169,232.8,232.74,7.05]
[1759442272988,7.58,232.81,232.74,7.05]
[1759442273893,7.58,232.81,232.71,21.2]
[1759442274095,7.58,232.86,232.74,7.05]
[1759442274299,2.94477719,232.85,232.74,7.05]
[1759442274500,2.94477719,232.84,232.78,3.8635]
[1759442274700,7.58,232.85,232.79,7.05]
[1759442274996,2.94388854,232.84,232.79,7.05]
[1759442275189,7.58,232.86,232.79,7.05]
[1759442275393,2.9440133,232.85,232.79,7.05]
[1759442275593,7.58,232.86,232.79,7.05]
[1759442275793,2.94325745,232.85,232.79,7.05]
[1759442276100,7.58,232.86,232.79,7.05]
[1759442278506,11.4418,232.89,232.8,7.05]
[1759442279507,7.58,232.89,232.8,3.8631]
[1759442279802,7.58,232.89,232.81,7.05]
[1759442281998,7.58,232.89,232.82,7.04]
[1759442282196,7.32,232.98,232.82,7.04]
[1759442282399,7.32,232.96,232.82,7.04]
[1759442282908,7.32,232.96,232.87,7.04]
[1759442283301,7.32,232.96,232.89,2.74829051]
[1759442283601,7.32,232.96,232.9,7.04]
[1759442284207,7.32,232.96,232.87,7.04]
[1759442285602,11.1807,232.96,232.87,7.04]
[1759442292307,11.1807,232.96,232.9,7.04]
[1759442293307,7.32,232.96,232.9,7.04]
[1759442306917,3.8609,232.95,232.88,1.7548913]
[1759442308011,3.8609,232.95,232.89,7.66]
[1759442316223,7.73,232.94,232.88,9.2648913]
[1759442318622,7.73,232.94,232.88,7.51]
[1759442318924,7.73,232.94,232.88,9.2648913]
[1759442320927,2.93557352,232.93,232.88,1.7548913]
[1759442321224,7.73,232.93,232.88,1.7548913]
[1759442321425,7.73,232.93,232.89,7.51]
[1759442321824,7.73,232.93,232.88,1.7548913]
[1759442322328,7.73,232.93,232.89,7.51]
[1759442322329,2.93810228,232.92,232.89,7.51]
[1759442322527,3.8609,232.95,232.89,7.51]
[1759442322724,2.93810228,232.94,232.88,7.51]
[1759442322923,11.5909,232.95,232.87,1.7548913]
[1759442322924,10.66810228,232.93,232.87,1.7548913]
[1759442323127,2.93810228,232.92,232.87,1.7548913]
[1759442323327,7.73,232.93,232.88,7.51]
[1759442323522,7.73,232.93,232.87,1.7548913]
[1759442324121,2.93938418,232.92,232.87,1.7548913]
[1759442324328,7.73,232.93,232.88,7.51]
[1759442324922,2.94029145,232.92,232.87,1.7548913]
[1759442325119,7.73,232.93,232.87,1.7548913]
[1759442325324,10.67040814,232.92,232.88,7.51]
[1759442325524,7.73,232.92,232.88,7.51]
[1759442325828,2.9400726,232.91,232.78,7.12086311]
[1759442326030,10.66984131,232.9,232.84,7.51]
[1759442326231,2.93984131,232.89,232.84,7.51]
[1759442326530,7.73,232.87,232.84,7.51]
[1759442326728,7.73,232.91,232.84,7.51]
[1759442326927,7.73,232.89,232.84,7.51]
[1759442327128,7.73,232.87,232.84,7.51]
[1759442327329,7.73,232.91,232.84,7.51]
[1759442327525,7.73,232.89,232.84,7.51]
[1759442327732,2.93980497,232.88,232.84,7.51]
[1759442328031,3.8616,232.9,232.84,7.51]
[1759442328232,7.73,232.88,232.84,7.51]
[1759442328437,3.8616,232.9,232.84,7.51]
[1759442328633,7.73,232.88,232.84,7.51]
[1759442328935,7.73,232.89,232.84,7.51]
[1759442329137,2.93913407,232.88,232.84,7.51]
[1759442329334,7.73,232.87,232.84,7.51]
[1759442329737,7.73,232.89,232.84,7.51]
[1759442329930,2.93855039,232.88,232.84,7.51]
[1759442330132,3.8616,232.9,232.84,7.51]
[1759442330133,7.73,232.89,232.84,7.51]
[1759442330334,7.73,232.89,232.83,7.51]
[1759442330531,2.93788631,232.88,232.83,7.51]
[1759442330739,7.73,232.89,232.83,7.51]
[1759442330940,7.73,232.89,232.77,3.8637]
[1759442330941,10.6678337,232.88,232.77,3.8637]
[1759442331141,9.4848913,232.86,232.76,1.7548913]
[1759442331337,7.73,232.84,232.76,1.7548913]
[1759442332044,5.6170913,232.86,232.76,1.7548913]
[1759442332045,7.73,232.82,232.76,1.7548913]
[1759442332240,7.73,232.82,232.75,7.51]
[1759442336051,7.73,232.86,232.77,7.51]
[1759442341351,1.7548913,232.84,232.74,320.05]
[1759442341544,1.7548913,232.81,232.74,7.51]
[1759442341744,13.00757846,232.87,232.71,7.17]
[1759442341745,7.37,232.77,232.71,7.17]
[1759442345054,7.37,232.77,232.71,5.6194913]
[1759442345259,9.1248913,232.84,232.72,7.17]
[1759442346659,9.1248913,232.84,232.75,11.034]
[1759442347661,7.37,232.83,232.75,11.034]
[1759442348456,7.37,232.82,232.75,7.17]
[1759442348654,1.7548913,232.81,232.75,7.17]
[1759442349559,7.37,232.8,232.75,7.17]
[1759442349759,1.7548913,232.81,232.75,7.17]
[1759442349956,7.37,232.8,232.75,7.17]
[1759442350159,1.7548913,232.81,232.75,7.17]
[1759442350563,7.37,232.8,232.75,7.17]
[1759442350760,7.37,232.8,232.71,7.17]
[1759442353263,11.2334,232.8,232.71,7.17]
[1759442357169,7.37,232.74,232.63,7.17]
[1759442358566,3.8644,232.73,232.63,7.17]
[1759442359268,7.37,232.72,232.63,7.17]
[1759442360368,11.2347,232.72,232.63,7.17]
[1759442360568,7.37,232.72,232.63,7.17]
[1759442361567,11.2346,232.72,232.63,7.17]
[1759442363067,7.37,232.7,232.63,7.17]
[1759442366268,11.2349,232.7,232.63,7.17]
[1759442369675,11.2349,232.7,232.53,2.74672446]
[1759442369676,7.18,232.7,232.53,2.74672446]
[1759442369980,7.18,232.7,232.54,7.35]
[1759442370671,7.18,232.66,232.55,7.35]
[1759442371379,3.8662,232.62,232.55,7.35]
[1759442372774,7.1,232.62,232.55,7.35]
[1759442373574,7.1,232.62,232.52,0.74820206]
[1759442374581,3.8667,232.6,232.52,0.74820206]
[1759442375173,7.1,232.59,232.52,0.74820206]
[1759442382890,7.1,232.59,232.51,7.05]
[1759442383388,7.1,232.59,232.48,0.74833077]
[1759442384489,7.1,232.54,232.47,10.9186]
[1759442385184,7.1,232.54,232.47,7.05]
[1759442385382,7.1,232.54,232.48,7.05]
[1759442388291,7.1,232.54,232.48,10.9184]
[1759442389586,7.1,232.54,232.48,7.05]
[1759442389987,7.1,232.54,232.46,3.8689]
[1759442390289,7.1,232.54,232.45,10.5451357]
[1759442390691,3.8675,232.55,232.45,10.5451357]
[1759442390890,7.1,232.54,232.45,10.5451357]
[1759442391091,3.8675,232.55,232.45,10.5451357]
[1759442391291,7.1,232.54,232.45,10.5451357]
[1759442391487,3.8675,232.55,232.45,10.5451357]
[1759442391691,7.1,232.54,232.45,10.5451357]
[1759442392082,7.1,232.54,232.45,7.79841124]
[1759442396797,7.1,232.54,232.46,7.05]
[1759442397999,7.1,232.58,232.46,7.05]
[1759442398195,7.1,232.58,232.45,3.4951357]
[1759442398196,7.1,232.58,232.49,7.05]
[1759442399698,7.1,232.58,232.49,10.9182]
[1759442400402,7.1,232.58,232.49,7.05]
[1759442401099,3.8671,232.57,232.49,7.05]
[1759442401300,7.1,232.56,232.46,7.05]
[1759442402203,3.8676,232.54,232.46,7.05]
[1759442402404,7.37,232.53,232.46,7.05]
[1759442406714,7.37,232.53,232.43,7.64]
[1759442407713,7.37,232.53,232.44,7.64]
[1759442407909,12.98144832,232.62,232.48,7.64]
[1759442407910,7.37,232.59,232.48,7.64]
[1759442409714,7.37,232.59,232.51,7.64]
[1759442412210,1.76119649,232.58,232.51,7.64]
[1759442412914,1.76119649,232.54,232.44,7.64]
[1759442413120,7.37,232.53,232.44,7.64]
[1759442413516,7.37,232.53,232.44,11.5091]
[1759442417617,7.37,232.53,232.45,7.64]
[1759442418122,7.37,232.53,232.45,11.5089]
[1759442418623,7.37,232.53,232.46,3.8688]
[1759442418821,7.37,232.53,232.47,7.64]
[1759442421522,9.13119649,232.53,232.42,3.8695]
[1759442421723,7.37,232.53,232.42,5.63069649]
[1759442421928,9.13119649,232.53,232.43,7.64]
[1759442423527,9.13119649,232.53,232.43,11.5092]
[1759442425921,7.37,232.53,232.44,7.24]
[1759442426328,7.37,232.53,232.46,7.24]
[1759442427628,7.37,232.53,232.46,11.1087]
[1759442431028,7.37,232.53,232.47,3.8686]
[1759442434934,7.37,232.53,232.48,3.8684]
[1759442435133,1.76119649,232.55,232.48,3.8684]
[1759442435134,7.62,232.54,232.48,3.8684]
[1759442437038,7.62,232.54,232.49,3.8683]
[1759442437234,7.62,232.54,232.5,6.98]
[1759442437837,7.62,232.56,232.5,6.98]
[1759442438437,7.62,232.54,232.5,6.98]
[1759442438637,7.62,232.56,232.5,6.98]
[1759442438838,2.93565356,232.55,232.5,6.98]
[1759442439037,7.62,232.56,232.5,6.98]
[1759442439239,7.62,232.54,232.5,6.98]
[1759442439439,7.62,232.56,232.5,6.98]
[1759442439639,2.93622539,232.55,232.5,6.98]
[1759442439935,7.62,232.56,232.5,6.98]
[1759442440137,7.62,232.54,232.5,6.98]
[1759442440537,7.62,232.56,232.5,6.98]
[1759442440735,7.62,232.54,232.5,6.98]
[1759442440937,7.62,232.6,232.5,10.8481]
[1759442441135,9.38119649,232.58,232.5,10.8481]
[1759442441433,2.93666468,232.57,232.5,10.8481]
[1759442441736,9.38119649,232.58,232.5,10.8481]
[1759442442034,2.93696526,232.57,232.5,10.8481]
[1759442442241,9.38119649,232.58,232.5,10.8481]
[1759442442435,2.93701108,232.57,232.5,10.8481]
[1759442442637,9.38119649,232.58,232.5,10.8481]
[1759442442842,2.93689122,232.57,232.5,10.8481]
[1759442443136,9.38119649,232.58,232.5,10.8481]
[1759442443335,2.93745957,232.57,232.5,10.8481]
[1759442443532,7.62,232.58,232.5,10.8481]
[1759442443733,2.93745957,232.57,232.5,10.8481]
[1759442444041,7.62,232.58,232.52,6.98]
[1759442444335,7.62,232.64,232.58,10.8468]
[1759442444533,2.93856113,232.63,232.58,3.8668]
[1759442444739,2.93856113,232.62,232.58,3.8668]
[1759442444940,11.19863358,232.65,232.59,6.98]
[1759442445140,7.62,232.63,232.59,6.98]
[1759442445345,2.93863863,232.62,232.59,6.98]
[1759442445536,16.75186877,232.65,232.59,6.98]
[1759442445841,7.62,232.63,232.59,6.98]
[1759442446035,10.55792077,232.62,232.59,6.98]
[1759442446240,7.62,232.62,232.59,6.98]
[1759442448832,7.62,232.64,232.58,10.8468]
[1759442449040,13.17323519,232.65,232.59,10.8466]
[1759442449243,7.62,232.66,232.59,10.8466]
[1759442449543,7.62,232.66,232.6,6.98]
[1759442449934,7.62,232.66,232.58,1.76119649]
[1759442449935,2.93636331,232.68,232.62,6.98]
[1759442450139,9.38119649,232.73,232.65,6.98]
[1759442450341,2.93478522,232.72,232.65,6.98]
[1759442450536,2.93478522,232.71,232.65,6.98]
[1759442450736,9.38119649,232.73,232.65,6.98]
[1759442450937,9.38119649,232.73,232.67,1.76119649]
[1759442450938,2.93483661,232.72,232.67,1.76119649]
[1759442451142,7.62,232.73,232.68,6.98]
[1759442451345,7.62,232.73,232.67,1.76119649]
[1759442451639,7.62,232.73,232.68,6.98]
[1759442451837,7.62,232.73,232.67,1.76119649]
[1759442452034,7.62,232.73,232.68,6.98]
[1759442452343,7.62,232.74,232.68,6.98]
[1759442452545,10.54956768,232.74,232.68,6.98]
[1759442452740,7.62,232.74,232.68,6.98]
[1759442454847,1.76119649,232.77,232.69,1.76119649]
[1759442455043,1.76119649,232.77,232.7,6.98]
[1759442455340,7.62,232.78,232.7,6.98]
[1759442458540,20.26557955,232.78,232.7,6.98]
[1759442459441,11.06288154,232.81,232.73,6.98]
[1759442459847,11.06288154,232.81,232.75,8.74119649]
[1759442460245,7.62,232.8,232.71,6.98]
[1759442460646,7.62,232.8,232.74,6.98]
[1759442465750,7.62,232.8,232.74,8.74119649]
[1759442467550,7.62,232.8,232.74,1.76119649]
[1759442467748,3.44288154,232.81,232.76,1.76119649]
[1759442467948,10.49288154,232.81,232.76,1.76119649]
[1759442468253,10.49288154,232.81,232.77,7.37]
[1759442468643,10.49288154,232.81,232.76,1.76119649]
[1759442468845,10.49288154,232.81,232.77,7.37]
[1759442470256,10.49288154,232.81,232.67,12.6]
[1759442470257,7.05,232.81,232.8,7.37]
[1759442470447,3.8624,232.86,232.8,7.37]
[1759442471150,7.05,232.87,232.8,7.37]
[1759442473455,7.05,232.9,232.81,7.37]
[1759442476552,7.05,232.9,232.83,2.74448774]
[1759442476854,7.05,232.93,232.84,7.37]
[1759442477253,7.05,232.93,232.86,2.74448774]
[1759442477456,7.05,232.93,232.87,7.37]
[1759442478055,7.05,232.96,232.87,7.37]
[1759442485656,7.05,232.96,232.87,11.2319]
[1759442486257,7.05,232.96,232.88,7.65]
[1759442489561,7.05,232.96,232.86,7.65]
[1759442489771,9.96714039,232.96,232.86,7.65]
[1759442489960,2.91714039,232.96,232.83,10.39448774]
[1759442490660,7.11,232.95,232.83,10.39448774]
[1759442490965,2.91714039,232.96,232.83,10.39448774]
[1759442491162,7.11,232.95,232.83,10.39448774]
[1759442491563,3.8608,232.95,232.83,14.25718774]
[1759442492060,7.19,232.94,232.83,14.25718774]
[1759442492366,6.77794039,232.95,232.83,14.25718774]
[1759442492558,7.19,232.94,232.83,14.25718774]
[1759442492753,7.19,232.94,232.83,11.5127]
[1759442492957,2.91714039,232.94,232.83,11.5127]
[1759442493169,7.19,232.92,232.83,11.5127]
[1759442493360,7.19,232.93,232.83,11.5127]
[1759442493563,7.19,232.92,232.83,11.5127]
[1759442494270,10.10714039,232.92,232.83,11.5127]
[1759442494564,7.19,232.92,232.83,11.5127]
[1759442494959,10.10714039,232.92,232.83,11.5127]
[1759442495159,7.19,232.92,232.83,11.5127]
[1759442495354,2.92909458,232.91,232.83,11.5127]
[1759442495566,7.19,232.92,232.83,11.5127]
[1759442495767,2.92947008,232.91,232.83,11.5127]
[1759442495961,7.19,232.92,232.83,11.5127]
[1759442497070,2.93115464,232.91,232.83,11.5127]
[1759442497573,2.93115464,232.91,232.84,7.15]
[1759442497758,2.93115464,232.91,232.84,11.0124]
[1759442498064,7.19,232.92,232.84,11.0124]
[1759442498271,2.93328217,232.91,232.84,11.0124]
[1759442498463,7.19,232.92,232.84,11.0124]
[1759442498768,2.93388413,232.91,232.84,11.0124]
[1759442499072,7.19,232.92,232.84,11.0124]
[1759442499366,2.93605278,232.91,232.84,11.0124]
[1759442499569,7.19,232.92,232.84,11.0124]
[1759442499868,2.93606076,232.91,232.84,11.0124]
[1759442500072,7.19,232.92,232.84,11.0124]
[1759442500267,2.93739837,232.91,232.84,11.0124]
[1759442500467,7.19,232.92,232.84,11.0124]
[1759442500668,2.93736331,232.91,232.84,11.0124]
[1759442500967,7.19,232.92,232.86,3.8622]
[1759442501373,2.93773545,232.96,232.88,7.15]
[1759442501571,7.19,232.97,232.93,7.15]
[1759442501872,7.19,233.01,232.93,7.15]
[1759442502072,7.19,232.99,232.93,7.15]
[1759442502266,2.93800101,232.98,232.93,7.15]
[1759442502467,7.19,232.97,232.93,7.15]
[1759442503172,7.19,233.03,232.94,7.15]
[1759442503376,2.93897671,233.06,232.94,7.15]
[1759442503670,7.19,233.07,232.98,7.15]
[1759442504061,7.19,233.07,232.98,11.0102]
[1759442504263,2.94060699,233.06,232.98,11.0102]
[1759442504475,7.19,233.07,232.98,11.0102]
[1759442504668,2.93921206,233.06,232.98,11.0102]
[1759442504868,7.19,233.07,232.98,11.0102]
[1759442505169,2.93938123,233.06,232.98,11.0102]
[1759442505373,2.93808452,233.05,232.98,11.0102]
[1759442505577,2.93808452,233.06,232.98,11.0102]
[1759442505768,7.19,233.07,232.98,11.0102]
[1759442505769,2.93808452,233.05,232.98,11.0102]
[1759442506073,7.19,233.05,232.98,7.15]
[1759442524576,7.35,233.1,232.98,7.15]
[1759442524880,10.28816624,233.1,232.99,7.08]
[1759442525380,7.35,233.1,232.99,7.08]
[1759442525581,7.35,233.1,232.99,10.9399]
[1759442525881,7.35,233.1,233.0,7.08]
[1759442526074,7.35,233.1,233.01,3.8597]
[1759442526279,7.35,233.1,233.02,7.08]
[1759442531578,7.35,233.1,233.04,3.8592]
[1759442532185,7.35,233.1,233.02,7.08]
[1759442532384,397.62558439,233.25,232.98,2.15415177]
[1759442532385,9.50415177,233.26,233.08,7.08]
[1759442532588,7.35,233.24,233.08,7.08]
[1759442532786,7.35,233.24,233.02,60.0376]
[1759442532787,7.35,233.24,233.1,7.08]
[1759442533690,7.35,233.21,233.1,7.08]
[1759442533893,20.28205848,233.21,233.1,7.08]
[1759442534190,1.37676839,233.19,233.08,1.37676839]
[1759442534390,7.35,233.18,233.08,1.37676839]
[1759442535186,11.2071,233.18,233.11,1.37676839]
[1759442535390,7.35,233.18,233.11,1.37676839]
[1759442536699,3.8572,233.17,233.11,1.37676839]
[1759442536992,7.35,233.16,233.11,1.37676839]
[1759442537198,3.8572,233.17,233.11,1.37676839]
[1759442537496,7.35,233.16,233.11,1.37676839]
[1759442537700,3.8572,233.17,233.11,1.37676839]
[1759442538599,7.35,233.16,233.11,1.37676839]
[1759442538891,3.8572,233.17,233.11,1.37676839]
[1759442539497,7.35,233.16,233.11,1.37676839]
[1759442539698,3.8572,233.17,233.11,1.37676839]
[1759442539898,7.35,233.16,233.11,1.37676839]
[1759442540302,3.8572,233.17,233.11,1.37676839]
[1759442540494,7.35,233.16,233.11,1.37676839]
[1759442540799,3.8572,233.17,233.11,1.37676839]
[1759442540996,7.35,233.16,233.11,1.37676839]
[1759442541397,3.8572,233.17,233.11,1.37676839]
[1759442541799,7.35,233.16,233.09,7.08]
[1759442541995,1.37676839,233.18,232.98,312.22]
[1759442542203,7.35,233.17,233.07,1.37676839]
[1759442542711,3.8579,233.12,233.07,8.45676839]
[1759442542910,7.35,233.11,233.05,1.37676839]
[1759442543209,11.2082,233.11,233.05,1.37676839]
[1759442545705,7.35,233.11,233.05,1.37676839]
[1759442548615,11.2081,233.11,233.05,1.37676839]
[1759442554515,11.2081,233.11,233.02,7.08]
[1759442554819,11.2081,233.11,233.05,1.37676839]
[1759442556224,3.8584,233.1,233.05,1.37676839]
[1759442556524,7.2,233.09,233.05,1.37676839]
[1759442556725,3.8584,233.1,233.05,1.37676839]
[1759442556927,7.2,233.09,233.02,7.08]
[1759442557123,7.2,233.07,233.04,1.37676839]
[1759442557318,3.8586,233.08,233.04,1.37676839]
[1759442557521,7.2,233.07,233.04,1.37676839]
[1759442557814,7.2,233.07,233.02,7.08]
[1759442557815,3.8589,233.06,233.02,1.37676839]
[1759442558019,1.37676839,233.08,232.99,8.98676839]
[1759442558219,7.2,233.07,232.99,1.37676839]
[1759442559718,7.2,233.03,232.99,1.37676839]
[1759442559923,3.8594,233.04,232.99,1.37676839]
[1759442560122,7.2,233.03,232.99,1.37676839]
[1759442560517,3.8596,233.02,232.96,8.98676839]
[1759442561724,7.2,233.01,232.96,8.98676839]
[1759442562126,3.8596,233.02,232.96,8.98676839]
[1759442562327,7.2,233.01,232.96,8.98676839]
[1759442562827,3.8596,233.02,232.96,8.98676839]
[1759442563026,7.2,233.01,232.96,8.98676839]
[1759442563420,7.2,233.01,232.9,316.0215]
[1759442563421,3.8599,233.0,232.91,7.61]
[1759442563619,3.8599,233.0,232.94,1.37676839]
[1759442564425,7.2,232.99,232.94,1.37676839]
[1759442564723,7.2,232.99,232.92,7.61]
[1759442565631,3.8604,232.98,232.92,7.61]
[1759442566134,7.2,232.97,232.92,7.61]
[1759442566422,3.8604,232.98,232.92,7.61]
[1759442566624,7.2,232.97,232.92,7.61]
[1759442566926,7.2,232.95,232.88,8.98676839]
[1759442568016,7.2,232.95,232.88,7.61]
[1759442568825,7.2,232.95,232.87,1.37676839]
[1759442569023,7.2,232.95,232.88,7.61]
[1759442570228,7.2,232.95,232.91,7.61]
[1759442570929,7.2,232.94,232.91,7.61]
[1759442572328,7.2,233.01,232.93,8.98676839]
[1759442572831,20.18947134,233.01,232.93,8.98676839]
[1759442573322,7.2,233.01,232.93,8.98676839]
[1759442573720,7.2,233.01,232.96,1.37676839]
[1759442573923,7.2,233.01,232.97,7.61]
[1759442574622,7.2,233.03,232.97,7.61]
[1759442575228,11.0589,233.06,232.97,7.61]
[1759442575424,23.65712903,233.06,232.97,7.61]
[1759442575729,23.65712903,233.06,232.99,1.37676839]
[1759442575730,11.0589,233.06,232.99,1.37676839]
[1759442579630,11.0589,233.06,232.99,8.98676839]
[1759442581631,7.2,233.06,232.99,8.98676839]
[1759442582632,7.2,233.06,233.03,7.36]
[1759442585439,11.059,233.06,233.03,7.36]
[1759442587532,3.8592,233.05,232.99,7.36]
[1759442588741,11.4292,233.05,232.99,7.36]
[1759442589047,7.57,233.02,232.98,1.37676839]
[1759442589235,7.57,233.02,232.98,8.73676839]
[1759442591243,7.57,233.02,232.99,7.36]
[1759442592943,7.57,233.02,232.98,1.37676839]
[1759442593441,3.8591,233.05,232.99,7.36]
[1759442593741,11.4288,233.07,233.01,7.36]
[1759442594939,7.57,233.05,232.98,7.36]
[1759442596037,3.859,233.06,232.98,7.36]
[1759442597544,11.4286,233.08,232.98,7.36]
[1759442599048,11.4286,233.08,232.98,11.2201]
[1759442599244,7.57,233.08,232.99,7.36]
[1759442599639,7.57,233.08,233.0,7.36]
[1759442599848,7.57,233.08,233.02,7.36]
[1759442600440,7.57,233.12,233.02,7.36]
[1759442601538,11.4281,233.12,233.02,7.36]